bitfinex-derivatives/quotes_BTCF0:USTF0_20250710
["timestamp","ask_amount","ask_price","bid_price","bid_amount"]
[1752184835345,0.47422509,116420.0,116410.0,0.21884515]
[1752184835545,0.55272509,116420.0,116410.0,0.21884515]
[1752184835952,0.1572,116420.0,116410.0,0.21884515]
[1752184836447,0.55272509,116420.0,116410.0,0.21884515]
[1752184836648,0.55472509,116420.0,116410.0,0.57664515]
[1752184836852,0.55472509,116420.0,116410.0,0.21584515]
[1752184837048,0.1592,116420.0,116410.0,0.21584515]
[1752184837353,0.55272509,116420.0,116410.0,0.21584515]
[1752184838153,0.5532851,116420.0,116410.0,0.21584515]
[1752184838450,0.07926001,116420.0,116410.0,0.62319515]
[1752184838754,0.0787,116420.0,116410.0,0.62367515]
[1752184839345,0.47422509,116420.0,116410.0,0.62267515]
[1752184839550,0.08026001,116420.0,116410.0,0.62267515]
[1752184839750,0.47522509,116420.0,116410.0,0.26187515]
[1752184839953,0.4757851,116420.0,116410.0,0.62219515]
[1752184840152,0.4757851,116420.0,116410.0,0.62263515]
[1752184840554,0.4747851,116420.0,116410.0,0.62263515]
[1752184840754,0.4767851,116420.0,116410.0,0.62263515]
[1752184841353,0.4767851,116420.0,116410.0,0.26183515]
[1752184841551,0.4767851,116420.0,116410.0,0.62219515]
[1752184841750,0.4767851,116420.0,116410.0,0.62267515]
[1752184842547,0.4767851,116420.0,116410.0,0.26187515]
[1752184842751,0.4767851,116420.0,116410.0,0.62219515]
[1752184842954,0.4767851,116420.0,116410.0,0.62275515]
[1752184843256,0.08126001,116420.0,116410.0,0.62275515]
[1752184843455,0.47622509,116420.0,116410.0,0.62275515]
[1752184843956,0.47622509,116420.0,116410.0,0.26195515]
[1752184844153,0.0807,116420.0,116410.0,0.62275515]
[1752184844358,0.47622509,116420.0,116410.0,0.62219515]
[1752184844857,0.0807,116420.0,116410.0,0.62219515]
[1752184845157,0.47622509,116420.0,116410.0,0.62219515]
[1752184845552,0.0807,116420.0,116410.0,0.62219515]
[1752184845858,0.47622509,116420.0,116410.0,0.98299515]
[1752184846757,0.003,116420.0,116410.0,0.98299515]
[1752184846956,0.0797,116450.0,116440.0,0.07894]
[1752184847258,0.47522509,116450.0,116440.0,0.07894]
[1752184847660,0.47522509,116450.0,116440.0,0.51594]
[1752184847855,0.47522509,116450.0,116440.0,0.15514]
[1752184848359,0.4778251,116450.0,116440.0,0.51594]
[1752184848561,0.4778251,116450.0,116440.0,0.51638]
[1752184848859,0.4758251,116450.0,116440.0,0.51638]
[1752184849059,0.4758251,116450.0,116440.0,0.51938]
[1752184849961,0.4304351,116450.0,116440.0,0.51938]
[1752184850156,0.03491001,116450.0,116440.0,0.59588]
[1752184850358,0.03431,116450.0,116440.0,0.95868]
[1752184850566,0.03431,116450.0,116440.0,0.23708]
[1752184850860,0.002,116450.0,116440.0,0.23664]
[1752184852353,0.47401509,116470.0,116460.0,0.03116]
[1752184852556,0.00056001,116470.0,116460.0,0.44143]
[1752184852760,0.07849,116470.0,116460.0,0.60007]
[1752184853065,0.03155,116470.0,116460.0,0.60007]
[1752184853557,0.002,116490.0,116480.0,0.03116]
[1752184853756,0.002,116490.0,116480.0,0.23723]
[1752184854155,0.002,116490.0,116480.0,0.59803]
[1752184854757,0.47601509,116490.0,116480.0,0.10926]
[1752184855067,0.07849,116480.0,116470.0,0.3608]
[1752184855256,0.51486509,116480.0,116460.0,0.3628]
[1752184855456,0.44246509,116470.0,116460.0,0.002]
[1752184855661,0.51486509,116470.0,116460.0,0.0765]
[1752184855956,0.51486509,116470.0,116460.0,0.4373]
[1752184856156,0.04694,116460.0,116450.0,0.48877]
[1752184856361,0.51566509,116460.0,116450.0,0.56527]
[1752184856561,0.51566509,116460.0,116450.0,0.5158]
[1752184856755,0.51566509,116460.0,116450.0,0.4373]
[1752184857159,0.12014,116460.0,116450.0,0.0765]
[1752184857357,0.12014,116460.0,116450.0,0.4373]
[1752184857562,0.51566509,116460.0,116450.0,0.0765]
[1752184857759,0.51566509,116460.0,116450.0,0.4373]
[1752184857956,0.51566509,116460.0,116450.0,0.48677]
[1752184858158,0.12070001,116460.0,116450.0,0.19901]
[1752184858462,0.51566509,116460.0,116450.0,0.19857]
[1752184858664,0.5162251,116460.0,116450.0,0.55937]
[1752184858957,0.5162251,116460.0,116450.0,0.56181]
[1752184859162,0.4430251,116460.0,116450.0,0.56181]
[1752184859661,0.04750001,116460.0,116450.0,0.56181]
[1752184859855,0.44246509,116460.0,116450.0,0.56181]
[1752184860057,0.4430251,116460.0,116450.0,0.56181]
[1752184860866,0.4440251,116460.0,116450.0,0.56181]
[1752184861659,0.4745751,116460.0,116450.0,0.59397]
[1752184861860,0.07905001,116460.0,116450.0,0.59397]
[1752184862055,0.47401509,116460.0,116450.0,0.59397]
[1752184862262,0.4745751,116460.0,116450.0,0.59397]
[1752184863064,0.00056001,116460.0,116450.0,0.59397]
[1752184863264,0.07849,116480.0,116470.0,0.08063]
[1752184863458,0.07849,116480.0,116470.0,0.80223]
[1752184863655,0.47352509,116490.0,116470.0,0.80223]
[1752184863656,0.04894,116490.0,116480.0,0.04947]
[1752184863856,0.002,116490.0,116480.0,0.48777]
[1752184864057,0.002,116490.0,116480.0,0.56057]
[1752184864661,0.002,116490.0,116480.0,0.55857]
[1752184865061,0.002,116490.0,116480.0,0.19777]
[1752184865263,0.003,116490.0,116480.0,0.55657]
[1752184866866,0.0031,116490.0,116480.0,0.55657]
[1752184867166,0.39862509,116490.0,116480.0,0.55657]
[1752184867361,0.0031,116490.0,116480.0,0.55657]
[1752184867755,0.39862509,116490.0,116480.0,0.55657]
[1752184867959,0.0031,116490.0,116480.0,0.55657]
[1752184868158,0.0031,116490.0,116480.0,0.55705]
[1752184869169,0.0031,116490.0,116480.0,0.58821]
[1752184870670,0.076,116510.0,116480.0,1.15543109]
[1752184870866,0.47401509,116520.0,116510.0,0.08063]
[1752184871063,0.07909001,116520.0,116510.0,0.44143]
[1752184871265,0.47401509,116520.0,116510.0,0.59477]
[1752184871462,0.4276351,116520.0,116510.0,0.59477]
[1752184871667,0.07905001,116520.0,116510.0,0.59477]
[1752184871862,0.4765751,116520.0,116510.0,0.59477]
[1752184872067,0.47601509,116520.0,116510.0,0.59477]
[1752184872268,0.00260001,116520.0,116510.0,0.59477]
[1752184872465,0.44546509,116530.0,116520.0,0.04947]
[1752184872666,0.08209001,116530.0,116520.0,0.59473]
[1752184872867,0.08149,116530.0,116520.0,0.60159105]
[1752184873071,0.003,116530.0,116520.0,1.59719105]
[1752184874070,0.003,116530.0,116520.0,1.66493127]
[1752184875080,0.003,116530.0,116520.0,1.66425127]
[1752184875372,0.003,116530.0,116520.0,0.63817127]
[1752184875577,0.003,116530.0,116520.0,1.66393127]
[1752184875764,0.003,116530.0,116520.0,1.68186332]
[1752184877273,0.003,116530.0,116520.0,2.18186332]
[1752184877475,0.003,116530.0,116520.0,2.74899101]
[1752184877875,0.002,116570.0,116550.0,0.04947]
[1752184878072,0.002,116570.0,116560.0,1.54591509]
[1752184878273,0.002,116570.0,116560.0,1.58539]
[1752184878467,0.002,116570.0,116560.0,1.22459]
[1752184878677,0.002,116570.0,116560.0,1.58539]
[1752184879273,0.003,116570.0,116560.0,1.58539]
[1752184879878,0.003,116570.0,116560.0,1.58939]
[1752184879879,0.002,116570.0,116560.0,1.58939]
[1752184880273,0.002,116570.0,116560.0,1.59239]
[1752184880473,0.102,116570.0,116560.0,1.59239]
[1752184881174,0.14894,116570.0,116560.0,0.56767]
[1752184881375,0.90526509,116570.0,116560.0,0.007]
[1752184881580,0.97286509,116570.0,116560.0,0.007]
[1752184881777,1.05056509,116570.0,116560.0,0.007]
[1752184882076,1.30056509,116570.0,116560.0,0.007]
[1752184882381,0.04686,116560.0,116540.0,2.04624]
[1752184882587,0.04686,116540.0,116530.0,0.4269]
[1752184882784,0.54238509,116540.0,116530.0,0.3508]
[1752184883083,0.6856451,116540.0,116530.0,0.35124]
[1752184883375,0.29012001,116540.0,116530.0,0.35124]
[1752184883575,0.28956,116540.0,116530.0,0.35124]
[1752184883772,0.14686,116540.0,116530.0,0.47461]
[1752184884177,0.14686,116540.0,116530.0,0.55331]
[1752184884476,0.14686,116540.0,116530.0,0.20351]
[1752184884781,0.22126,116540.0,116530.0,0.20307]
[1752184884980,0.22226,116540.0,116530.0,0.20307]
[1752184885183,0.22226,116540.0,116530.0,0.20407]
[1752184885576,0.22126,116540.0,116530.0,0.20507]
[1752184885976,0.61678509,116540.0,116530.0,0.56587]
[1752184886179,0.6173451,116540.0,116530.0,0.48761]
[1752184886778,0.22182001,116540.0,116530.0,0.48761]
[1752184886971,0.22126,116540.0,116530.0,0.12681]
[1752184887176,0.22126,116540.0,116530.0,0.12637]
[1752184888581,0.22126,116540.0,116530.0,0.48717]
[1752184888782,0.22126,116540.0,116530.0,0.48761]
[1752184889183,0.2526,116540.0,116530.0,0.52088]
[1752184889481,0.1,116540.0,116530.0,0.91640509]
[1752184889675,0.1,116540.0,116530.0,0.59748]
[1752184889875,0.1,116540.0,116530.0,1.16462909]
[1752184890075,0.1,116540.0,116530.0,1.49300509]
[1752184891774,0.1,116540.0,116530.0,1.51916024]
[1752184891975,0.1,116540.0,116530.0,1.12363515]
[1752184892581,0.1,116540.0,116530.0,1.18369515]
[1752184892776,0.11876,116560.0,116530.0,1.57922024]
[1752184892973,0.0782,116560.0,116550.0,0.80214]
[1752184893172,0.1782,116560.0,116550.0,2.4783]
[1752184893378,0.1782,116560.0,116550.0,2.6228]
[1752184894081,0.57372509,116560.0,116550.0,1.12345]
[1752184894280,0.71332509,116560.0,116550.0,0.10537]
[1752184894476,0.71432509,116560.0,116550.0,0.10537]
[1752184894785,0.71432509,116560.0,116550.0,1.12325]
[1752184894985,1.02826509,116560.0,116540.0,0.3608]
[1752184895181,1.02826509,116560.0,116530.0,1.51284515]
[1752184895182,0.50156509,116550.0,116530.0,1.51284515]
[1752184895380,0.64842509,116540.0,116530.0,1.61813515]
[1752184895682,0.64842509,116540.0,116530.0,0.96045515]
[1752184895880,0.61708509,116540.0,116530.0,0.08621515]
[1752184896184,0.61708509,116540.0,116530.0,0.44701515]
[1752184896381,0.68198509,116540.0,116530.0,0.44701515]
[1752184896976,0.68198509,116540.0,116530.0,0.08721515]
[1752184897673,0.22156,116540.0,116530.0,0.08721515]
[1752184897875,0.22156,116540.0,116530.0,0.20938515]
[1752184898079,0.61708509,116540.0,116530.0,0.08721515]
[1752184898283,0.6176451,116540.0,116530.0,0.16211515]
[1752184898683,0.6186451,116540.0,116530.0,0.16111515]
[1752184898885,0.6186451,116540.0,116530.0,0.52191515]
[1752184899085,0.6186451,116540.0,116530.0,0.52235515]
[1752184899381,0.6499851,116540.0,116530.0,0.55562515]
[1752184899988,0.6499851,116540.0,116530.0,0.19482515]
[1752184900183,0.8216091,116540.0,116530.0,0.08621515]
[1752184900383,1.4010691,116540.0,116520.0,0.00171637]
[1752184900689,0.93535509,116530.0,116520.0,0.00171637]
[1752184900893,1.04368728,116530.0,116520.0,0.00171637]
[1752184901185,0.03281,116520.0,116500.0,0.3608]
[1752184901383,0.49552509,116510.0,116500.0,0.3614]
[1752184901585,0.5288951,116510.0,116500.0,0.3614]
[1752184901778,0.6733951,116510.0,116500.0,0.3614]
[1752184901976,0.27787001,116510.0,116500.0,0.3614]
[1752184902182,0.67283509,116510.0,116500.0,0.0006]
[1752184902382,0.1,116500.0,116490.0,0.12137]
[1752184902576,0.49552509,116500.0,116490.0,0.12137]
[1752184902791,0.4960851,116500.0,116490.0,0.12137]
[1752184902981,0.10056001,116500.0,116490.0,0.12137]
[1752184903182,0.1,116500.0,116490.0,0.48217]
[1752184903578,0.1,116500.0,116490.0,0.55627]
[1752184904994,0.1,116500.0,116490.0,0.48217]
[1752184905380,0.1,116500.0,116490.0,0.56197]
[1752184905586,0.03281,116490.0,116480.0,0.43669696]
[1752184905784,1.03133509,116490.0,116480.0,0.07589696]
[1752184906183,0.67053509,116490.0,116480.0,0.07589696]
[1752184906892,0.8422311,116490.0,116480.0,0.07589696]
[1752184907294,1.2030311,116490.0,116480.0,0.07589696]
[1752184907682,1.2030311,116490.0,116480.0,0.07789696]
[1752184908090,1.20359111,116490.0,116480.0,0.07889696]
[1752184908689,0.80806602,116490.0,116480.0,0.07889696]
[1752184908886,0.44726602,116490.0,116480.0,0.43969696]
[1752184909089,0.84279111,116490.0,116480.0,0.07933696]
[1752184909397,0.84279111,116490.0,116480.0,0.07889696]
[1752184909587,1.0318951,116490.0,116480.0,0.07889696]
[1752184909895,2.21479111,116490.0,116480.0,0.07889696]
[1752184910395,2.18174111,116490.0,116470.0,0.04727]
[1752184910588,0.0794,116480.0,116470.0,0.12007]
[1752184910795,0.57492509,116480.0,116470.0,0.48087]
[1752184910991,0.5754851,116480.0,116470.0,0.48131]
[1752184911191,0.17996001,116480.0,116470.0,0.48131]
[1752184911390,0.57492509,116480.0,116470.0,0.48131]
[1752184911592,0.5754851,116480.0,116470.0,0.48231]
[1752184911791,0.5764851,116480.0,116470.0,0.51858]
[1752184912394,0.5764851,116480.0,116470.0,0.15878]
[1752184912586,0.5764851,116480.0,116470.0,0.15834]
[1752184912989,0.5764851,116480.0,116470.0,0.51914]
[1752184913191,0.10156001,116480.0,116470.0,0.51914]
[1752184913387,0.101,116480.0,116470.0,0.59274]
[1752184913587,0.101,116480.0,116470.0,0.55947]
[1752184913787,0.002,116490.0,116470.0,1.54838329]
[1752184913995,0.46922509,116520.0,116490.0,0.04579]
[1752184914289,0.1,116510.0,116500.0,0.55499]
[1752184914491,0.1,116510.0,116500.0,0.91579]
[1752184914897,0.1,116510.0,116500.0,0.91479]
[1752184915100,0.1,116510.0,116500.0,0.19319]
[1752184915288,0.1,116510.0,116500.0,0.55399]
[1752184915490,0.104,116510.0,116500.0,0.55499]
[1752184915799,0.104,116510.0,116500.0,0.95051509]
[1752184915999,0.105,116510.0,116500.0,0.95051509]
[1752184916895,0.102,116510.0,116500.0,0.94951509]
[1752184917396,0.101,116510.0,116500.0,0.94951509]
[1752184917596,0.102,116510.0,116500.0,0.95451509]
[1752184917796,0.101,116510.0,116500.0,0.95551509]
[1752184918196,0.101,116510.0,116500.0,0.95599509]
[1752184918499,0.101,116510.0,116500.0,0.95499509]
[1752184918693,0.101,116510.0,116500.0,0.95799509]
[1752184918894,0.002,116530.0,116500.0,1.08386908]
[1752184919095,0.002,116530.0,116520.0,0.76739]
[1752184919292,0.04704,116530.0,116520.0,0.76787]
[1752184919490,0.04704,116530.0,116520.0,0.84017]
[1752184919691,0.44256509,116530.0,116520.0,0.84017]
[1752184919887,0.44320509,116530.0,116520.0,0.11857]
[1752184920088,0.44420509,116530.0,116520.0,0.48389]
[1752184920288,0.44420509,116530.0,116520.0,0.48433]
[1752184920600,0.61584509,116530.0,116520.0,0.00544]
[1752184920797,0.68628813,116530.0,116520.0,0.005]
[1752184921001,0.68628813,116530.0,116510.0,0.1485]
[1752184921002,0.04504,116520.0,116510.0,0.0762]
[1752184921305,0.58346509,116520.0,116510.0,0.0762]
[1752184921496,0.0238,116510.0,116500.0,0.3628]
[1752184921691,0.56222509,116510.0,116500.0,0.36124]
[1752184921889,0.33892401,116510.0,116500.0,0.36124]
[1752184922092,0.7344491,116510.0,116500.0,0.00044]
[1752184922299,0.33892401,116510.0,116500.0,0.00044]
[1752184922493,0.33892401,116510.0,116480.0,0.12330696]
[1752184922687,0.41932509,116490.0,116480.0,0.48410696]
[1752184922899,0.41932509,116490.0,116460.0,0.40659]
[1752184923099,0.41760509,116470.0,116460.0,0.4366]
[1752184923597,0.49400509,116470.0,116460.0,0.4366]
[1752184923988,0.59400509,116470.0,116460.0,0.4366]
[1752184924393,0.60200509,116470.0,116460.0,0.4376]
[1752184924791,0.59900509,116470.0,116460.0,0.0768]
[1752184924997,0.59900509,116470.0,116460.0,0.4376]
[1752184925195,0.66600509,116470.0,116460.0,0.4376]
[1752184926206,0.57692509,116470.0,116460.0,0.48339]
[1752184926390,0.57592509,116470.0,116460.0,0.48339]
[1752184926794,0.60000509,116470.0,116460.0,0.48339]
[1752184927002,0.20248,116470.0,116460.0,0.48339]
[1752184927198,0.20248,116470.0,116460.0,0.001]
[1752184927199,0.59800509,116470.0,116460.0,0.001]
[1752184927706,0.6646051,116470.0,116460.0,0.001]
[1752184928100,0.6666051,116470.0,116460.0,0.001]
[1752184929692,0.26708001,116470.0,116450.0,0.50183]
[1752184929902,0.47162509,116460.0,116450.0,0.50183]
[1752184930404,0.09818,116460.0,116450.0,0.12409]
[1752184930601,0.59370509,116460.0,116450.0,0.12409]
[1752184930798,0.59370509,116460.0,116450.0,0.48489]
[1752184930998,0.59370509,116460.0,116450.0,0.48589]
[1752184931505,0.59370509,116460.0,116450.0,0.48489]
[1752184931701,0.59470509,116460.0,116450.0,0.12409]
[1752184931902,0.02208,116450.0,116430.0,0.3608]
[1752184932094,0.51760509,116440.0,116420.0,0.40659]
[1752184932295,0.47332509,116430.0,116420.0,0.47969]
[1752184932607,0.0778,116430.0,116420.0,0.47969]
[1752184932802,0.47332509,116430.0,116410.0,0.40659]
[1752184933004,0.41760509,116420.0,116410.0,0.48013]
[1752184933307,0.4181651,116420.0,116410.0,0.48013]
[1752184933505,0.4959651,116420.0,116410.0,0.11933]
[1752184933804,0.4959651,116420.0,116410.0,0.11889]
[1752184934000,0.20044001,116420.0,116410.0,0.0731]
[1752184934205,0.60040509,116420.0,116410.0,0.11989]
[1752184934401,0.6009651,116420.0,116410.0,0.11989]
[1752184934709,0.5999651,116420.0,116410.0,0.11989]
[1752184936004,0.9607651,116420.0,116410.0,0.11989]
[1752184936804,0.9587651,116420.0,116410.0,0.11989]
[1752184937009,0.56224001,116420.0,116410.0,0.11989]
[1752184937208,0.5969651,116420.0,116410.0,0.11989]
[1752184937616,0.7687651,116420.0,116410.0,0.001]
[1752184937805,0.8357651,116420.0,116410.0,0.001]
[1752184938107,0.5748851,116420.0,116410.0,0.40759]
[1752184938306,0.17936001,116420.0,116410.0,0.48679]
[1752184938607,0.57432509,116420.0,116410.0,0.12599]
[1752184939208,0.59640509,116420.0,116410.0,0.12599]
[1752184939409,0.59640509,116420.0,116410.0,0.48679]
[1752184940405,0.101,116420.0,116410.0,0.48679]
[1752184940606,0.001,116420.0,116410.0,0.60061509]
[1752184940816,0.001,116420.0,116410.0,0.56589]
[1752184941016,0.001,116420.0,116410.0,0.57423085]
[1752184941310,0.001,116420.0,116410.0,0.56589]
[1752184942309,0.39652509,116420.0,116410.0,0.20509]
[1752184942615,0.47162509,116420.0,116410.0,0.12599]
[1752184942807,0.49370509,116420.0,116410.0,0.12599]
[1752184943009,0.59370509,116420.0,116410.0,0.12599]
[1752184945318,0.59434509,116420.0,116410.0,0.12599]
[1752184945709,0.59434509,116420.0,116410.0,0.48679]
[1752184945909,0.59434509,116420.0,116410.0,0.48723]
[1752184946113,0.19882,116420.0,116410.0,0.12643]
[1752184946313,0.59370509,116420.0,116410.0,0.12599]
[1752184946509,0.5943051,116420.0,116410.0,0.12599]
[1752184946815,0.5722251,116420.0,116410.0,0.48679]
[1752184947016,0.5722251,116420.0,116410.0,0.48731]
[1752184947213,0.5943051,116420.0,116410.0,0.48731]
[1752184947418,0.5943051,116420.0,116410.0,0.12651]
[1752184947617,0.5943051,116420.0,116410.0,0.12599]
[1752184948216,0.5722251,116420.0,116410.0,0.48679]
[1752184948416,0.5722251,116420.0,116410.0,0.20099]
[1752184948812,0.10160001,116420.0,116410.0,0.56179]
[1752184949022,0.101,116420.0,116410.0,0.95731509]
[1752184949216,0.101,116420.0,116410.0,0.56179]
[1752184949817,0.51860509,116420.0,116410.0,0.56179]
[1752184950023,0.51860509,116420.0,116410.0,0.12599]
[1752184950226,0.51860509,116420.0,116410.0,0.12699]
[1752184950611,0.59710509,116420.0,116410.0,0.12699]
[1752184950816,0.20158,116420.0,116410.0,0.12799]
[1752184951123,0.59710509,116420.0,116410.0,0.12799]
[1752184951725,0.59710509,116420.0,116410.0,0.0822]
[1752184953026,0.5976651,116420.0,116410.0,0.0822]
[1752184953521,1.50371019,116420.0,116400.0,0.01866814]
[1752184953720,0.02208,116400.0,116390.0,0.12745829]
[1752184954121,0.48990509,116400.0,116390.0,0.12745829]
[1752184954420,0.4904651,116400.0,116390.0,0.12745829]
[1752184954919,0.8512651,116400.0,116390.0,0.07791829]
[1752184955220,0.12208,116380.0,116370.0,0.04954]
[1752184955416,0.51760509,116380.0,116370.0,0.12744]
[1752184955613,0.5181651,116380.0,116370.0,0.12744]
[1752184955816,0.19494001,116380.0,116370.0,0.12744]
[1752184956021,0.58990509,116380.0,116370.0,0.12744]
[1752184956219,0.19494001,116380.0,116370.0,0.12744]
[1752184956417,0.65869528,116380.0,116370.0,0.12744]
[1752184956622,0.66025529,116380.0,116370.0,0.13344]
[1752184957023,1.64645529,116380.0,116370.0,0.13344]
[1752184957222,1.64645529,116380.0,116370.0,0.13044]
[1752184957723,0.02208,116370.0,116360.0,0.00171873]
[1752184957929,0.55708,116370.0,116360.0,0.00171873]
[1752184958126,1.1818,116370.0,116360.0,0.00171873]
[1752184958422,1.57720509,116370.0,116360.0,0.00171873]
[1752184958821,1.93800509,116370.0,116360.0,0.00171873]
[1752184959020,2.00420509,116370.0,116360.0,0.00171873]
[1752184959226,2.00520509,116370.0,116360.0,0.00771873]
[1752184959623,1.93736509,116370.0,116360.0,0.05125873]
[1752184959818,1.93836509,116370.0,116360.0,0.00571873]
[1752184960026,0.02208,116360.0,116350.0,0.00171888]
[1752184960230,0.02036,116350.0,116340.0,0.3608]
[1752184960528,0.02036,116350.0,116320.0,0.00171932]
[1752184960529,2.23609018,116350.0,116320.0,0.00171932]
[1752184960729,0.39552509,116330.0,116320.0,0.00171932]
[1752184960929,1.84048509,116330.0,116320.0,0.00171932]
[1752184961122,2.40452109,116330.0,116310.0,0.00171947]
[1752184961429,2.40452109,116330.0,116280.0,0.07521991]
[1752184961430,0.1,116290.0,116280.0,0.07521991]
[1752184961728,0.49552509,116290.0,116280.0,0.19895991]
[1752184961924,0.1,116290.0,116280.0,0.19895991]
[1752184962227,0.49552509,116290.0,116280.0,0.19895991]
[1752184962423,0.47142509,116300.0,116290.0,0.04954]
[1752184962628,0.47142509,116300.0,116290.0,0.12374]
[1752184962825,0.39552509,116300.0,116290.0,0.19824]
[1752184963022,0.49552509,116300.0,116290.0,0.19824]
[1752184963221,0.4961251,116300.0,116290.0,0.12174]
[1752184963425,0.4981251,116300.0,116290.0,0.0742]
[1752184963622,0.17750001,116300.0,116290.0,0.0742]
[1752184963924,0.0769,116300.0,116290.0,0.0742]
[1752184964125,0.3608,116320.0,116290.0,1.32900109]
[1752184964327,0.10060001,116320.0,116300.0,0.3608]
[1752184964526,0.10060001,116320.0,116310.0,0.0765]
[1752184964527,0.4961251,116320.0,116310.0,0.0765]
[1752184964731,0.4960851,116320.0,116300.0,0.36124]
[1752184965033,0.39552509,116310.0,116300.0,0.12648]
[1752184965220,0.3960851,116310.0,116300.0,0.48684]
[1752184965424,0.4749851,116310.0,116300.0,0.04998]
[1752184965624,0.9357851,116310.0,116290.0,0.04954]
[1752184965824,0.1761,116300.0,116290.0,0.04954]
[1752184966125,0.56962509,116300.0,116290.0,0.41034]
[1752184966326,0.17466001,116300.0,116290.0,0.04998]
[1752184966529,0.1,116300.0,116290.0,0.04954]
[1752184966829,0.39552509,116300.0,116290.0,0.04954]
[1752184967030,0.4960851,116300.0,116290.0,0.12534]
[1752184967228,0.92644977,116300.0,116290.0,0.20134]
[1752184967639,0.92644977,116300.0,116290.0,0.56214]
[1752184967640,0.63974977,116300.0,116290.0,0.56214]
[1752184967933,0.56564977,116300.0,116290.0,0.56562]
[1752184968322,0.3733333,116330.0,116290.0,0.51608]
[1752184968528,0.75832509,116330.0,116310.0,0.04954]
[1752184968722,0.1,116320.0,116310.0,0.04954]
[1752184968929,0.49552509,116320.0,116310.0,0.12354]
[1752184969730,0.101,116320.0,116310.0,0.12354]
[1752184969935,0.49652509,116320.0,116310.0,0.12354]
[1752184970623,0.101,116320.0,116310.0,0.12354]
[1752184971126,0.101,116320.0,116310.0,0.48434]
[1752184971531,0.101,116320.0,116310.0,0.55894]
[1752184971933,0.41301773,116320.0,116310.0,0.55894]
[1752184972134,0.41301773,116320.0,116310.0,0.19814]
[1752184972527,0.41501773,116320.0,116310.0,0.04954]
[1752184972723,0.48901773,116320.0,116310.0,0.045]
[1752184972929,0.84981773,116320.0,116310.0,0.045]
[1752184973129,0.92105773,116320.0,116310.0,0.045]
[1752184973326,0.92105773,116320.0,116300.0,0.149]
[1752184973524,0.92105773,116320.0,116300.0,0.194]
[1752184973525,0.074,116310.0,116300.0,0.194]
[1752184973725,0.74681773,116310.0,116300.0,0.194]
[1752184974034,0.74925773,116310.0,116300.0,0.045]
[1752184974234,0.74725773,116310.0,116300.0,0.045]
[1752184974433,0.74725773,116310.0,116300.0,0.1217]
[1752184974636,0.38645773,116310.0,116300.0,0.1217]
[1752184974832,0.74725773,116310.0,116300.0,0.1197]
[1752184975025,0.38845773,116310.0,116300.0,0.1217]
[1752184976025,0.07844,116310.0,116300.0,0.4825]
[1752184976233,0.38801773,116310.0,116300.0,0.48294]
[1752184976432,0.31445773,116310.0,116300.0,0.55524]
[1752184976633,0.31401773,116310.0,116300.0,0.55524]
[1752184976833,0.38671773,116310.0,116300.0,0.12214]
[1752184977028,0.38719774,116310.0,116300.0,0.1217]
[1752184977538,0.38719774,116310.0,116300.0,0.1237]
[1752184978633,0.48819774,116310.0,116300.0,0.1217]
[1752184978935,0.85099774,116310.0,116300.0,0.047]
[1752184979133,0.85099774,116310.0,116300.0,0.002]
[1752184979339,0.92669774,116310.0,116300.0,0.002]
[1752184979533,0.92669774,116310.0,116300.0,0.001]
[1752184979735,1.23671547,116310.0,116290.0,0.045]
[1752184979938,0.1556,116300.0,116290.0,0.045]
[1752184980139,0.56761773,116300.0,116290.0,0.045]
[1752184980444,1.24087546,116300.0,116290.0,0.045]
[1752184980833,1.24087546,116300.0,116270.0,0.36252006]
[1752184980834,0.002,116290.0,116270.0,0.00172006]
[1752184981039,2.26133773,116280.0,116270.0,0.00220006]
[1752184981239,2.72261774,116280.0,116270.0,0.00172006]
[1752184981438,3.04072574,116280.0,116250.0,0.12134847]
[1752184981641,0.41201773,116260.0,116250.0,0.12134847]
[1752184981841,2.71901774,116260.0,116250.0,0.12134847]
[1752184982042,2.79041774,116260.0,116250.0,0.12134847]
[1752184983239,2.47840001,116260.0,116250.0,0.12134847]
[1752184983444,2.79041774,116260.0,116250.0,0.12149487]
[1752184983840,2.79041774,116260.0,116250.0,0.19679487]
[1752184984438,2.80069635,116260.0,116250.0,0.20079487]
[1752184984634,2.79241774,116260.0,116250.0,0.20079487]
[1752184984841,2.43161774,116260.0,116250.0,0.56159487]
[1752184985044,2.43161774,116260.0,116250.0,0.20079487]
[1752184985045,0.41449774,116260.0,116250.0,0.20079487]
[1752184985250,0.10248001,116260.0,116250.0,0.56159487]
[1752184985440,0.102,116260.0,116250.0,0.56203487]
[1752184986442,0.41401773,116260.0,116250.0,0.56203487]
[1752184986648,0.41449774,116260.0,116250.0,0.56203487]
[1752184987447,0.10248001,116260.0,116250.0,0.56203487]
[1752184987648,0.102,116260.0,116250.0,0.56203487]
[1752184988945,0.102,116260.0,116250.0,0.8740526]
[1752184989248,0.102,116260.0,116250.0,0.9352846]
[1752184989549,0.102,116260.0,116250.0,0.56203487]
[1752184990445,0.102,116260.0,116250.0,0.73406687]
[1752184990854,0.002,116260.0,116250.0,0.73406687]
[1752184991151,0.31401773,116260.0,116250.0,0.56203487]
[1752184991349,0.002,116260.0,116250.0,0.56203487]
[1752184992648,0.31401773,116260.0,116250.0,0.12593487]
[1752184992852,0.31401773,116260.0,116250.0,0.12549487]
[1752184993045,0.45721773,116260.0,116250.0,0.12549487]
[1752184993244,0.07164,116260.0,116250.0,0.12549487]
[1752184993447,0.07164,116260.0,116250.0,0.55399487]
[1752184993448,0.38321773,116260.0,116250.0,0.55399487]
[1752184993747,0.00244,116260.0,116250.0,0.55443487]
[1752184993943,0.076,116290.0,116250.0,0.8214526]
[1752184994143,0.17454,116290.0,116280.0,0.4058]
[1752184994345,0.1741,116290.0,116280.0,0.40628]
[1752184994545,0.102,116290.0,116280.0,0.54758]
[1752184995852,0.002,116290.0,116280.0,0.54758]
[1752184996050,0.004,116290.0,116280.0,0.54758]
[1752184996555,0.002,116290.0,116280.0,0.85959773]
[1752184996854,0.004,116290.0,116280.0,0.54958]
[1752184997057,0.104,116290.0,116280.0,0.54958]